bitfinex/quotes_ETHUSD_20240902
["timestamp","ask_amount","ask_price","bid_price","bid_amount"]
[1725266676025,2.82285,2479.8,2479.2,4.1909617]
[1725266676356,2.82285,2479.8,2479.3,0.92905917]
[1725266676565,2.82285,2479.8,2479.3,3.75236917]
[1725266676720,2.82285,2479.8,2479.4,0.55]
[1725266677765,5.64573,2479.8,2479.4,0.55]
[1725266677963,2.82285,2479.8,2479.4,0.55]
[1725266678125,5.64573,2479.8,2479.4,0.55]
[1725266678324,2.82285,2479.8,2479.4,0.55]
[1725266679239,2.82285,2479.8,2479.4,1.28024792]
[1725266679723,2.82263,2480.0,2479.5,2.2783]
[1725266679925,5.64529,2480.0,2479.5,2.2783]
[1725266680328,5.64528,2480.0,2479.5,2.2783]
[1725266680568,2.82239,2480.2,2479.6,0.63817979]
[1725266680777,2.82247,2480.1,2479.6,3.46119979]
[1725266680965,2.82258,2480.0,2479.6,0.63817979]
[1725266681132,5.64481,2480.2,2479.7,0.29164798]
[1725266681326,2.82239,2480.2,2479.7,0.29164798]
[1725266681555,5.64481,2480.2,2479.7,0.29164798]
[1725266681761,2.82239,2480.2,2479.7,0.29164798]
[1725266682483,5.64481,2480.2,2479.7,0.29164798]
[1725266683035,5.64483,2480.2,2479.7,0.29164798]
[1725266683569,2.82248,2480.1,2479.7,0.29164798]
[1725266685364,2.82217,2480.4,2479.8,5.14269]
[1725266685732,2.82217,2480.4,2479.8,2.3199]
[1725266685949,2.82235,2480.2,2479.8,2.3199]
[1725266686171,2.82235,2480.2,2479.8,3.48029198]
[1725266688656,2.82235,2480.2,2479.7,3.0]
[1725266688957,2.82258,2480.0,2479.7,3.0]
[1725266689194,2.82258,2480.0,2479.6,2.3773]
[1725266689573,2.82258,2480.0,2479.5,3.0]
[1725266689892,2.82269,2479.9,2479.5,3.0]
[1725266690095,2.82269,2479.9,2479.5,0.54834]
[1725266690593,2.82281,2479.8,2479.4,3.0]
[1725266690799,2.82281,2479.8,2479.3,5.4834]
[1725266691005,2.82301,2479.7,2479.4,0.813024]
[1725266691206,2.82301,2479.7,2479.3,2.4834]
[1725266691874,2.82281,2479.8,2479.3,2.4834]
[1725266692265,2.82293,2479.7,2479.3,2.4834]
[1725266692464,2.82293,2479.7,2479.3,6.13249609]
[1725266694263,2.82304,2479.6,2479.3,6.13249609]
[1725266694586,2.82304,2479.6,2479.3,3.0]
[1725266694784,2.82304,2479.6,2479.1,5.3099]
[1725266695021,2.82304,2479.6,2479.2,0.55]
[1725266695223,2.82318,2479.5,2479.2,3.0]
[1725266695432,2.82328,2479.4,2479.2,3.0]
[1725266695632,2.82328,2479.4,2478.8,2.82387]
[1725266695633,2.82328,2479.4,2478.8,5.32297]
[1725266695782,5.64661,2479.4,2478.8,5.32297]
[1725266695983,5.64661,2479.4,2478.9,0.65070509]
[1725266696489,2.82328,2479.4,2478.9,0.65070509]
[1725266696882,2.82328,2479.4,2478.9,3.65070509]
[1725266697077,5.64663,2479.4,2478.9,3.65070509]
[1725266697278,2.82328,2479.4,2478.9,3.65070509]
[1725266697482,2.82328,2479.4,2479.0,0.89736751]
[1725266697926,5.64662,2479.4,2479.0,0.89736751]
[1725266698132,2.82328,2479.4,2479.0,0.89736751]
[1725266699132,2.82345,2479.3,2478.9,3.65070509]
[1725266699333,2.82345,2479.3,2478.8,3.0]
[1725266699489,2.293,2479.4,2478.7,3.0]
[1725266699490,2.82372,2479.0,2478.7,3.0]
[1725266699683,2.82372,2479.0,2478.6,2.3015]
[1725266699933,2.82372,2479.0,2478.6,3.114084]
[1725266700440,2.82413,2478.7,2477.9,2.3196]
[1725266700732,2.82413,2478.7,2478.1,2.82472]
[1725266701286,2.82413,2478.7,2477.9,2.3196]
[1725266701630,2.82351,2479.2,2478.3,2.3065]
[1725266701792,5.64732,2479.1,2478.4,2.82431]
[1725266701987,5.64732,2479.1,2478.5,0.513081]
[1725266701988,2.82362,2479.1,2478.5,0.513081]
[1725266702329,5.22612,2479.3,2478.7,2.3065]
[1725266702541,2.8232,2479.5,2478.8,2.82386]
[1725266702846,2.82312,2479.6,2479.1,2.3065]
[1725266703763,2.4027,2479.9,2479.1,2.3065]
[1725266703764,2.82301,2479.7,2479.1,2.3065]
[1725266704040,2.8227,2479.9,2479.2,0.55]
[1725266704249,2.8227,2479.9,2479.3,0.28565]
[1725266704400,2.82251,2480.1,2479.4,2.82325]
[1725266704610,2.82251,2480.1,2479.5,2.4551]
[1725266704803,2.82251,2480.1,2479.6,0.527829]
[1725266705039,2.82251,2480.1,2479.6,6.350839]
[1725266706127,2.82251,2480.1,2479.6,3.527829]
[1725266706352,2.82288,2479.8,2479.3,0.28565]
[1725266706553,2.82288,2479.8,2479.3,3.28565]
[1725266706954,2.82263,2480.0,2479.3,6.10898]
[1725266707189,2.82263,2480.0,2479.4,4.00534]
[1725266707475,2.82263,2480.0,2479.6,2.4405]
[1725266707851,2.82263,2480.0,2479.5,3.0]
[1725266708173,2.82287,2479.8,2479.4,3.0]
[1725266708555,5.64576,2479.8,2479.4,3.0]
[1725266708748,2.82287,2479.8,2479.4,3.0]
[1725266708969,2.82287,2479.8,2479.3,2.72615]
[1725266709272,2.823,2479.7,2479.3,2.72615]
[1725266710762,2.82287,2479.8,2479.3,2.72615]
[1725266711274,2.82287,2479.8,2479.4,0.327615]
[1725266711698,2.82239,2480.2,2479.6,2.487]
[1725266711990,2.82239,2480.2,2479.6,8.30997]
[1725266712143,2.82247,2480.1,2479.6,5.487]
[1725266712481,2.82247,2480.1,2479.6,6.63518188]
[1725266712840,2.82239,2480.2,2479.6,9.45820188]
[1725266713043,2.54073778,2480.8,2479.6,9.45820188]
[1725266713044,2.54073778,2480.9,2479.8,2.3823]
[1725266713269,2.3528,2481.0,2480.3,2.3969]
[1725266713471,2.82176,2480.8,2480.3,2.3969]
[1725266713645,2.82197,2480.6,2480.3,2.3969]
[1725266715293,2.82175,2480.8,2480.3,2.3969]
[1725266715511,2.82175,2480.8,2480.3,2.93659]
[1725266716794,5.64351,2480.8,2480.3,2.93659]
[1725266717491,2.82175,2480.8,2480.3,2.93659]
[1725266717907,2.82147,2481.0,2480.3,2.93659]
[1725266718155,2.82164,2480.9,2480.3,2.93659]
[1725266718451,2.4534,2481.2,2480.3,2.3969]
[1725266718452,2.82188,2480.7,2480.3,2.3969]
[1725266718746,2.82188,2480.7,2480.1,3.0]
[1725266718747,2.82192,2480.6,2480.1,3.0]
[1725266719059,2.82203,2480.5,2480.0,5.3968]
[1725266719221,2.82184,2480.7,2480.0,5.3968]
[1725266719420,2.82184,2480.7,2480.1,3.96439384]
[1725266719647,2.82184,2480.7,2480.2,3.0]
[1725266720109,2.82175,2480.8,2480.1,6.96433384]
[1725266720311,5.64351,2480.8,2480.2,0.63612338]
[1725266720506,2.82187,2480.7,2480.2,0.63612338]
[1725266721761,2.82191,2480.6,2480.1,4.14194384]
[1725266721909,2.82191,2480.6,2480.1,3.55]
[1725266722107,5.64389,2480.6,2480.1,3.55]
[1725266722447,2.82191,2480.6,2480.1,3.55]
[1725266722653,2.82191,2480.6,2480.1,4.47921184]
[1725266723107,2.82191,2480.6,2480.1,4.55984313]
[1725266723308,5.64391,2480.6,2480.1,4.47921184]
[1725266723535,2.82203,2480.5,2480.1,4.47921184]
[1725266723811,2.82225,2480.3,2480.1,3.92921184]
[1725266724008,2.82225,2480.3,2480.1,3.0]
[1725266724322,2.82225,2480.3,2480.0,5.3968]
[1725266724835,2.82203,2480.5,2480.0,5.3968]
[1725266725030,2.82203,2480.5,2480.0,6.27101584]
[1725266725436,2.82219,2480.4,2480.0,6.27101584]
[1725266725757,2.82226,2480.3,2480.0,6.27101584]
[1725266725969,2.82246,2480.1,2479.6,2.3914]
[1725266726176,2.89231954,2480.8,2479.6,2.3914]
[1725266726177,2.82292,2479.7,2479.6,2.3914]
[1725266726315,2.82292,2479.7,2479.3,2.3914]
[1725266726676,2.424,2479.9,2478.9,2.4248]
[1725266726677,5.64647,2479.5,2478.9,2.4248]
[1725266726821,5.64647,2479.5,2478.9,2.99159338]
[1725266727162,2.82296,2479.7,2479.0,2.9043676]
[1725266727455,5.24673,2479.9,2479.2,2.82347]
[1725266727456,2.82273,2479.9,2479.2,2.82347]
[1725266727663,2.82273,2479.9,2479.2,5.66755381]
[1725266727865,2.82273,2479.9,2479.3,0.80923538]
[1725266728162,2.82227,2480.3,2479.5,2.3]
[1725266728317,2.82227,2480.3,2479.6,3.37295]
[1725266728517,2.82206,2480.5,2479.9,2.2862]
[1725266728945,2.82206,2480.5,2479.9,5.36684036]
[1725266729125,2.8222,2480.4,2479.9,5.2862]
[1725266729328,2.82224,2480.3,2479.9,5.2862]
[1725266729551,2.82224,2480.3,2479.9,2.8785495]
[1725266729762,2.822,2480.6,2479.6,2.8362]
[1725266729917,2.82264,2480.0,2479.6,2.2862]
[1725266730324,2.82264,2480.0,2479.7,0.22862]
[1725266730857,2.82264,2480.0,2479.7,3.22862]
[1725266731029,2.82277,2479.9,2479.3,5.29417]
[1725266731235,2.82277,2479.9,2479.4,3.55]
[1725266731437,2.82282,2479.8,2479.4,3.0]
[1725266731623,2.82282,2479.8,2479.3,2.4708]
[1725266731624,2.82282,2479.8,2479.3,5.4708]
[1725266731819,2.82282,2479.8,2479.3,2.4708]
[1725266732978,5.64572,2479.8,2479.3,2.4708]
[1725266733181,2.82292,2479.7,2479.3,3.300239]
[1725266733382,2.82282,2479.8,2479.4,3.0]
[1725266733588,2.82292,2479.7,2479.4,3.0]
[1725266733741,2.82282,2479.8,2479.4,3.0]
[1725266734175,2.82306,2479.6,2479.4,3.0]
[1725266734354,5.64619,2479.6,2479.0,8.54883815]
[1725266734560,2.82306,2479.6,2479.1,3.62492382]
[1725266735064,2.82315,2479.5,2479.1,3.62492382]
[1725266735482,2.82306,2479.6,2479.1,3.62492382]
[1725266735669,2.82306,2479.6,2479.2,1.2173862]
[1725266736436,2.82285,2479.8,2479.3,2.3087]
[1725266736955,2.82263,2480.0,2479.4,2.82325]
[1725266737156,2.82263,2480.0,2479.5,0.513195]
[1725266737550,2.82263,2480.0,2479.5,3.513195]
[1725266737978,0.48291954,2479.9,2479.3,2.3087]
[1725266738160,2.82315,2479.5,2478.9,2.4724]
[1725266738492,2.82315,2479.5,2479.0,0.55]
[1725266738846,2.82315,2479.5,2479.0,3.55]
[1725266739976,2.4809,2479.8,2478.9,2.4724]
[1725266739977,2.82344,2479.3,2478.9,2.4724]
[1725266740212,2.8231,2479.6,2478.9,5.29614]
[1725266741000,2.82286,2479.8,2478.9,2.4724]
[1725266741153,2.82286,2479.8,2479.0,6.90532838]
[1725266741354,2.82304,2479.6,2479.0,6.90532838]
[1725266741551,2.82304,2479.6,2479.0,9.72900838]
[1725266741778,2.82265,2480.0,2479.3,2.8233]
[1725266741954,2.82265,2480.0,2479.4,2.4197]
[1725266742151,2.82265,2480.0,2479.4,8.24295]
[1725266743702,2.82247,2480.1,2479.5,0.63065048]
[1725266743901,2.82247,2480.1,2479.5,4.79967553]
[1725266744944,2.8226,2480.0,2479.5,4.79967553]
[1725266745381,2.8224,2480.2,2479.5,4.79967553]
[1725266745961,2.82258,2480.0,2479.5,4.8803273]
[1725266746167,2.4286,2480.1,2479.3,3.28409477]
[1725266746466,2.4286,2480.1,2479.3,2.4841]
[1725266746467,2.82305,2479.6,2479.3,2.4841]
[1725266747267,2.82305,2479.6,2479.1,3.0]
[1725266747268,2.82305,2479.6,2479.1,5.3966]
[1725266747566,2.82305,2479.6,2479.1,2.93626]
[1725266747940,2.82329,2479.4,2479.1,2.93626]
[1725266752752,2.82287,2479.8,2479.1,2.93626]
[1725266753056,4.4286,2480.1,2479.1,2.93626]
[1725266753057,2.82258,2480.0,2479.3,2.82334]
[1725266753379,2.82258,2480.0,2479.3,0.92137361]
[1725266753380,2.8227,2479.9,2479.3,0.92137361]
[1725266754456,5.64574,2479.8,2479.3,0.92137361]
[1725266754661,5.64575,2479.8,2479.3,0.92137361]
[1725266754899,5.25108,2480.1,2479.1,2.93626]
[1725266755189,2.82321,2479.5,2479.1,2.3966]
[1725266756397,2.82355,2479.2,2478.9,3.0]
[1725266756700,2.82355,2479.2,2478.8,2.3973]
[1725266756701,2.82339,2479.3,2478.8,2.3973]
[1725266756895,2.82339,2479.3,2478.9,0.23973]
[1725266757093,5.64686,2479.3,2478.9,0.23973]
[1725266757389,2.8235,2479.2,2478.9,0.23973]
[1725266757681,2.82339,2479.3,2478.9,0.23973]
[1725266757883,5.64687,2479.3,2478.9,0.23973]
[1725266758301,2.82339,2479.3,2478.9,0.23973]
[1725266758590,5.64684,2479.3,2478.9,0.23973]
[1725266758791,2.82339,2479.3,2478.9,0.23973]
[1725266759088,5.64684,2479.3,2478.9,0.23973]
[1725266759381,2.82349,2479.2,2478.9,0.23973]
[1725266760285,2.82339,2479.3,2478.8,2.3973]
[1725266760785,2.82339,2479.3,2478.8,5.3973]
[1725266760997,2.82339,2479.3,2478.8,5.47797529]
[1725266761299,2.82318,2479.5,2478.8,5.3973]
[1725266761300,2.82328,2479.4,2478.8,5.3973]
[1725266761449,2.82328,2479.4,2478.9,0.822129]
[1725266762153,2.82389,2478.9,2478.5,2.4542]
[1725266762599,5.6478,2478.9,2478.5,2.4542]
[1725266762899,2.82417,2478.6,2478.0,2.4974]
[1725266764030,2.82435,2478.5,2478.0,2.4974]
[1725266764349,2.82435,2478.5,2478.0,5.57810049]
[1725266764751,2.82441,2478.4,2478.0,2.57810049]
[1725266764953,5.64842,2478.6,2478.0,2.4974]
[1725266765250,2.82417,2478.6,2478.0,2.4974]
[1725266765874,2.82436,2478.5,2478.0,2.4974]
[1725266766084,2.82436,2478.5,2478.0,5.4974]
[1725266766295,2.82471,2478.2,2478.0,3.0]
[1725266766451,2.82495,2478.0,2477.7,2.3929]
[1725266766667,2.82495,2478.0,2477.6,1.0]
[1725266766970,2.8252,2477.7,2477.6,1.0]
[1725266767172,5.6504,2477.7,2477.6,1.0]
[1725266768905,8.4756,2477.7,2477.6,1.0]
[1725266769108,9.28867973,2477.7,2477.6,1.0]
[1725266769423,11.28867973,2477.7,2477.6,1.0]
[1725266770173,13.59207973,2477.7,2477.6,1.0]
[1725266770587,5.6504,2477.7,2477.6,1.0]
[1725266770986,10.9733,2477.7,2477.6,1.0]
[1725266771191,16.28141954,2477.7,2477.6,1e-05]
[1725266771423,16.28141954,2477.7,2476.2,2.2986]
[1725266771424,2.82655,2476.6,2476.2,2.2986]
[1725266771689,2.82626,2476.8,2476.3,0.22986]
[1725266772116,2.82635,2476.7,2476.3,0.22986]
[1725266772318,2.82626,2476.8,2476.3,0.22986]
[1725266772835,2.82635,2476.7,2476.3,0.22986]
[1725266773444,2.82626,2476.8,2476.3,0.22986]
[1725266773728,2.82603,2477.0,2476.3,0.22986]
[1725266773729,2.82603,2477.0,2476.3,0.31062055]
[1725266774291,2.82603,2477.0,2476.3,0.22986]
[1725266774540,2.82603,2477.0,2476.2,2.2986]
[1725266774541,2.82624,2476.8,2476.2,2.2986]
[1725266775007,2.82647,2476.6,2476.2,2.2986]
[1725266775198,2.82652,2476.6,2476.0,3.0]
[1725266775547,2.8268,2476.3,2475.9,2.3499]
[1725266776208,5.65327,2476.5,2475.9,2.3499]
[1725266776406,2.82669,2476.4,2475.9,2.3499]
[1725266777202,7.445733,2477.0,2475.9,2.3499]
[1725266777203,5.65369,2476.3,2475.9,2.3499]
[1725266777436,5.6537,2476.3,2475.9,2.3499]
[1725266777614,2.8268,2476.3,2475.9,2.3499]
[1725266777794,2.8271,2476.1,2475.6,5.4334]
[1725266777996,2.8271,2476.1,2475.6,3.26114838]
[1725266777997,2.82715,2476.0,2475.6,3.26114838]
[1725266778305,2.82736,2475.8,2475.3,2.4464]
[1725266778511,5.6548,2475.8,2475.3,3.25826338]
[1725266778695,2.82736,2475.8,2475.3,3.25826338]
[1725266779092,2.82736,2475.8,2475.3,2.4464]
[1725266779298,4.82689,2476.3,2475.3,2.4464]
[1725266779299,2.8277,2475.6,2475.3,2.4464]
[1725266779531,2.82741,2475.8,2475.3,2.4464]
[1725266779737,2.82745,2475.8,2475.3,2.98352767]
[1725266780237,2.82755,2475.7,2475.3,2.98352767]
[1725266780401,2.82755,2475.7,2475.3,2.4464]
[1725266780606,2.82745,2475.8,2475.3,2.4464]
[1725266781028,2.82755,2475.7,2475.2,3.0]
[1725266781225,2.82778,2475.5,2475.0,2.2812]
[1725266781503,2.82761,2475.6,2475.1,0.22812]
[1725266781698,2.82771,2475.5,2475.1,3.22812]
[1725266781927,2.82783,2475.4,2475.0,2.2812]
[1725266782609,2.82784,2475.4,2475.0,2.2812]
[1725266783022,2.82807,2475.2,2474.7,2.4492]
[1725266783518,2.82817,2475.1,2474.7,2.4492]
[1725266783958,2.82766,2475.6,2474.9,2.84408381]
[1725266784452,2.82766,2475.6,2474.8,0.08081309]
[1725266784453,2.82778,2475.5,2474.8,2.82843]
[1725266784631,2.82784,2475.4,2474.8,3.92346938]
[1725266784954,2.82795,2475.3,2474.7,2.4492]
[1725266785364,2.82795,2475.3,2474.7,5.4492]
[1725266785818,2.82836,2475.0,2474.4,5.16245]
[1725266786018,2.82836,2475.0,2474.5,3.0]
[1725266786019,5.65673,2475.0,2474.5,3.0]
[1725266786215,2.82836,2475.0,2474.5,3.0]
[1725266786462,2.82836,2475.0,2474.3,0.1210522]
[1725266786463,2.82852,2474.8,2474.3,0.1210522]
[1725266787130,3.111226,2475.0,2474.3,2.9500622]
[1725266787375,2.82843,2474.9,2474.3,2.9500622]
[1725266787521,2.82839,2475.0,2474.3,2.9500622]
[1725266787846,2.82811,2475.2,2474.6,2.3959]
[1725266788158,2.82806,2475.2,2474.7,0.522466]
[1725266788475,2.82806,2475.2,2474.6,2.3959]
[1725266788621,0.2513246,2475.5,2474.7,2.8286]
[1725266788930,0.2513246,2475.5,2474.9,2.82832]
[1725266789131,2.82741,2475.8,2475.1,2.82809]
[1725266789369,2.82717,2476.0,2475.0,2.3959]
[1725266789663,2.82759,2475.6,2475.0,2.3959]
[1725266789819,2.82772,2475.5,2474.7,5.22448]
[1725266790025,2.8273,2475.9,2475.2,5.22394]
[1725266790267,5.65514,2475.7,2475.2,2.3959]
[1725266790468,0.565514,2475.6,2475.2,2.3959]
[1725266790671,2.82727,2475.9,2475.2,2.3959]
[1725266790826,5.6546,2475.9,2475.2,5.22388]
[1725266791026,2.82727,2475.9,2475.2,2.3959]
[1725266791361,2.82767,2475.6,2475.2,2.3959]
[1725266791877,2.82748,2475.7,2475.2,2.3959]
[1725266792038,5.65464,2475.9,2475.2,5.22395]
[1725266792359,2.82737,2475.8,2475.2,5.22395]
[1725266792565,2.82749,2475.7,2475.2,5.22395]
[1725266793078,2.82749,2475.7,2475.2,2.3959]
[1725266793630,5.65505,2475.7,2475.2,2.3959]
[1725266793934,2.82749,2475.7,2475.2,5.22394]
[1725266794149,3.638364,2475.9,2475.2,5.22394]
[1725266794539,3.638364,2475.9,2475.4,2.8278]
[1725266794733,2.82686,2476.3,2475.6,2.8275]
[1725266794937,2.82686,2476.3,2475.7,2.2777]
[1725266794938,5.65374,2476.3,2475.7,2.2777]
[1725266795126,2.82699,2476.2,2475.7,2.2777]
[1725266795348,2.82705,2476.1,2475.7,2.2777]
[1725266795672,2.82743,2475.8,2475.3,2.2766]
[1725266795824,2.82749,2475.7,2475.3,5.2766]
[1725266796158,2.82749,2475.7,2475.3,2.2766]
[1725266796533,2.82743,2475.8,2475.3,2.2766]
[1725266796741,0.522466,2476.3,2475.6,2.82751]
[1725266796968,2.82705,2476.1,2475.4,8.00930321]
[1725266797128,2.82722,2476.0,2475.4,5.10073]
[1725266797323,3.109942,2476.0,2475.4,7.92848]
[1725266797555,2.82722,2476.0,2475.4,5.10073]
[1725266797754,7.3853,2476.6,2475.6,2.82753]
[1725266797755,2.82674,2476.4,2475.6,2.82753]
[1725266797954,2.82699,2476.2,2475.7,2.4437]
[1725266798640,2.82704,2476.1,2475.7,2.4437]
[1725266799564,2.82699,2476.2,2475.7,2.4437]
[1725266799565,6.474694,2476.4,2475.7,2.4437]
[1725266799788,3.647934,2476.4,2475.7,5.27108]
[1725266800064,2.82704,2476.1,2475.7,2.4437]
[1725266800927,2.82715,2476.0,2475.7,2.4437]
[1725266801323,4.8266,2476.5,2475.1,5.67221381]
[1725266801324,2.82728,2475.9,2475.1,5.67221381]
[1725266801561,2.82757,2475.7,2475.2,5.4532]
[1725266802073,2.82757,2475.7,2475.2,2.4532]
[1725266802074,2.8276,2475.6,2475.2,2.4532]
[1725266802269,2.82758,2475.7,2475.2,2.4532]
[1725266803073,4.82707,2476.1,2475.2,2.4532]
[1725266803074,2.82715,2476.0,2475.4,2.8278]
[1725266803227,2.4122,2476.3,2475.3,2.4532]
[1725266803228,2.82744,2475.8,2475.3,2.4532]
[1725266803829,2.82769,2475.6,2475.0,2.4316]
[1725266804134,2.82779,2475.5,2475.0,2.4316]
[1725266804331,2.82779,2475.5,2475.0,5.4316]
[1725266804531,2.82785,2475.4,2475.0,5.4316]
[1725266805037,2.82785,2475.4,2475.0,2.4316]
[1725266805777,0.282785,2475.3,2474.6,2.3112]
[1725266805934,2.82825,2475.1,2474.6,2.3112]
[1725266806139,2.82843,2474.9,2474.6,2.3112]
[1725266806788,2.82872,2474.7,2474.3,0.1210522]
[1725266806938,0.5383362,2474.8,2474.3,0.1210522]
[1725266807133,5.65792,2474.4,2474.3,0.1210522]
[1725266807388,6.14650273,2474.4,2474.3,0.1210522]
[1725266808281,5.65792,2474.4,2474.3,0.1210522]
[1725266808485,2.82896,2474.4,2474.3,0.1210522]
[1725266808786,2.82874,2474.6,2474.3,0.1210522]
[1725266809175,2.82886,2474.5,2474.3,0.1210522]
[1725266809368,2.82896,2474.4,2474.3,0.1210522]
[1725266809791,5.65792,2474.4,2474.3,0.1210522]
[1725266810290,8.48688,2474.4,2474.3,0.1210522]
[1725266810656,5.65792,2474.4,2474.3,0.1210522]
[1725266811387,6.17331411,2474.4,2474.3,0.1210522]
[1725266813490,5.65792,2474.4,2474.3,0.1210522]
[1725266813851,2.82896,2474.4,2474.3,0.1210522]
[1725266814061,5.65792,2474.4,2474.3,0.1210522]
[1725266815178,2.82896,2474.4,2474.3,0.1210522]
[1725266815773,5.65792,2474.4,2474.3,0.1210522]
[1725266816087,6.506586,2474.4,2474.3,0.1210522]
[1725266816458,9.8738822,2474.4,2474.3,0.1210522]
[1725266817063,9.335546,2474.4,2474.3,0.1210522]
[1725266817804,6.506586,2474.4,2474.3,0.1210522]
[1725266817968,5.65792,2474.4,2474.3,0.1210522]
[1725266818168,8.48688,2474.4,2474.3,0.1210522]
[1725266821268,10.92068,2474.4,2474.3,0.1210522]
[1725266822583,5.65792,2474.4,2474.3,0.1210522]
[1725266823394,8.48688,2474.4,2474.3,0.1210522]
[1725266823721,6.506608,2474.4,2474.3,0.1210522]
[1725266824182,9.335568,2474.4,2474.3,0.1210522]
[1725266824696,6.506608,2474.4,2474.3,0.1210522]
[1725266825199,9.335568,2474.4,2474.3,0.1210522]
[1725266825416,6.506608,2474.4,2474.3,0.1210522]
[1725266825711,9.335568,2474.4,2474.3,0.1210522]
[1725266827885,5.65792,2474.4,2474.3,0.1210522]
[1725266828640,8.48688,2474.4,2474.3,0.1210522]
[1725266829225,5.65792,2474.4,2474.3,0.1210522]
[1725266831793,2.82896,2474.4,2474.3,2.4577522]
[1725266832118,2.82896,2474.4,2474.3,2.70352742]
[1725266832318,2.82878,2474.6,2474.3,3.25352742]
[1725266832486,2.82878,2474.6,2474.4,2.2654]
[1725266832851,2.82853,2474.8,2474.4,0.61173676]
[1725266833006,2.82812,2475.2,2474.7,2.2654]
[1725266833204,12.18705,2476.1,2474.9,2.2654]
[1725266833205,2.82784,2475.4,2474.9,2.2654]
[1725266833426,2.82783,2475.4,2475.1,2.3832]
[1725266833717,5.6561,2475.2,2475.1,2.3832]
[1725266834049,2.82851,2474.8,2474.7,5.3832]
[1725266834332,2.82832,2475.0,2474.7,5.3832]
[1725266834546,2.82842,2474.9,2474.7,2.3832]
[1725266834691,2.82832,2475.0,2474.7,2.3832]
[1725266835048,2.82809,2475.2,2474.8,0.63081195]
[1725266835331,2.82809,2475.2,2474.9,2.76540215]
[1725266836194,2.82788,2475.4,2474.9,2.76540215]
[1725266836455,2.82743,2475.8,2475.2,2.3956]
[1725266836604,0.5383362,2476.0,2475.2,2.3956]
[1725266836605,2.82721,2476.0,2475.4,2.3956]
[1725266836955,2.82748,2475.7,2475.6,2.3956]
[1725266837093,2.82695,2476.2,2475.3,2.4841]
[1725266837094,3.3656062,2475.9,2475.3,2.4841]
[1725266837293,2.82782,2475.4,2475.3,2.4841]
[1725266837600,2.82805,2475.2,2475.1,3.0]
[1725266837910,2.82782,2475.4,2475.0,2.4841]
[1725266837911,2.82782,2475.4,2475.0,5.33842027]
[1725266838118,2.82782,2475.4,2475.1,3.0]
[1725266838449,2.82794,2475.3,2475.1,3.0]
[1725266838949,2.82782,2475.4,2475.1,3.0]
[1725266839113,2.82805,2475.2,2475.1,3.0]
[1725266840255,2.82816,2475.1,2475.0,2.4841]
[1725266840943,2.82805,2475.2,2474.6,2.356]
[1725266841104,2.82805,2475.2,2474.6,2.92432403]
[1725266841105,2.82823,2475.1,2474.6,2.92432403]
[1725266841305,2.8283,2475.0,2474.6,2.92432403]
[1725266841506,2.82805,2475.2,2474.7,0.57786443]
[1725266841763,2.82789,2475.4,2474.9,2.356]
[1725266842307,2.8276,2475.6,2474.9,2.356]
[1725266842508,2.82741,2475.8,2475.2,2.356]
[1725266842709,2.82715,2476.0,2475.5,2.356]
[1725266842710,2.82729,2475.9,2475.5,2.356]
[1725266842946,2.82715,2476.0,2475.5,2.356]
[1725266843110,5.65437,2476.0,2475.5,3.15981603]
[1725266843319,2.82715,2476.0,2475.5,3.15981603]
[1725266843504,5.65437,2476.0,2475.5,3.15981603]
[1725266844128,2.82697,2476.2,2475.5,3.24059699]
[1725266844333,2.82697,2476.2,2475.6,3.52799173]
[1725266844846,5.65437,2476.0,2475.6,3.52799173]
[1725266845152,2.82738,2475.8,2475.6,2.3685]
[1725266845318,2.82685,2476.3,2475.6,2.3685]
[1725266845574,2.82685,2476.3,2475.8,2.3209]
[1725266845880,2.82696,2476.2,2475.8,5.3209]
[1725266846083,2.82723,2476.0,2475.8,5.3209]
[1725266846250,2.82723,2476.0,2475.8,2.3209]
[1725266846459,2.82695,2476.2,2475.8,2.3209]
[1725266846787,2.82695,2476.2,2475.8,2.55299]
[1725266846985,2.82722,2476.0,2475.8,2.3209]
[1725266847142,2.82725,2475.9,2475.8,2.3209]
[1725266847343,2.82746,2475.8,2475.5,2.3752]
[1725266847543,2.8278,2475.5,2475.2,2.4924]
[1725266847763,2.82787,2475.4,2475.2,2.4924]
[1725266848871,2.82794,2475.3,2475.2,2.4924]
[1725266849042,2.82794,2475.3,2474.9,2.4585]
[1725266849290,2.82794,2475.3,2474.9,2.74393203]
[1725266849736,5.65596,2475.3,2474.9,2.74393203]
[1725266849921,2.82794,2475.3,2474.9,2.74393203]
[1725266850239,2.82794,2475.3,2475.0,3.0]
[1725266850400,2.82816,2475.1,2475.0,3.0]
[1725266850598,2.82816,2475.1,2474.9,5.4585]
[1725266850907,2.82776,2475.5,2474.9,5.4585]
[1725266851131,2.82749,2475.7,2475.1,2.85432027]
[1725266851297,2.82749,2475.7,2475.2,2.3971]
[1725266851692,2.82749,2475.7,2475.3,0.55]
[1725266851930,5.65507,2475.7,2475.3,0.55]
[1725266852350,2.82749,2475.7,2475.3,1.13014203]
[1725266852698,2.82773,2475.5,2475.3,0.58014203]
[1725266853855,5.65506,2475.7,2475.3,0.58014203]
[1725266854018,2.82749,2475.7,2475.3,0.58014203]
[1725266854218,2.82762,2475.6,2475.3,0.58014203]
[1725266854441,2.82773,2475.5,2475.2,2.3971]
[1725266854608,2.82782,2475.4,2475.2,2.3971]
[1725266854954,2.82773,2475.5,2475.2,2.3971]
[1725266855619,5.12358,2476.0,2475.2,2.3971]